[Event "Live Chess"]
[Site "Chess.com"]
[Date "2023.05.21"]
[Round "-"]
[White "FailsGambits"]
[Black "lateforthesky"]
[Result "0-1"]
[WhiteElo "1335"]
[BlackElo "2132"]
[TimeControl "300"]
[EndTime "5:53:32 PDT"]
[Termination "lateforthesky won by checkmate"]

1. e4 {[%clk 0:04:59.2]} 1... c5 {[%clk 0:04:55.3]} 2. Nf3 {[%clk 0:04:58.3]}
2... Nf6 {[%clk 0:04:53.4]} 3. Nc3 {[%clk 0:04:51.2]} 3... d6 {[%clk 0:04:51.5]}
4. d4 {[%clk 0:04:50]} 4... cxd4 {[%clk 0:04:50.3]} 5. Nxd4 {[%clk 0:04:49.9]}
5... a6 {[%clk 0:04:49.4]} 6. Be3 {[%clk 0:04:45.4]} 6... e5 {[%clk 0:04:47]} 7.
Nb3 {[%clk 0:04:43.7]} 7... Be6 {[%clk 0:04:43.7]} 8. Be2 {[%clk 0:04:36.8]}
8... Be7 {[%clk 0:04:38.8]} 9. O-O {[%clk 0:04:35.1]} 9... Nbd7 {[%clk
0:04:37.4]} 10. Nd5 {[%clk 0:04:24.3]} 10... Nxd5 {[%clk 0:04:30.5]} 11. exd5
{[%clk 0:04:24.2]} 11... Bf5 {[%clk 0:04:29.5]} 12. c4 {[%clk 0:04:15.1]} 12...
Rc8 {[%clk 0:04:12.3]} 13. Rc1 {[%clk 0:04:12.5]} 13... O-O {[%clk 0:04:03.1]}
14. Bg4 {[%clk 0:04:04.1]} 14... Bg6 {[%clk 0:03:45.2]} 15. f4 {[%clk
0:03:45.7]} 15... f5 {[%clk 0:03:39.9]} 16. Be2 {[%clk 0:03:25.4]} 16... Bf6
{[%clk 0:03:30.5]} 17. Bh5 {[%clk 0:03:01.4]} 17... exf4 {[%clk 0:03:16.5]} 18.
Bxg6 {[%clk 0:02:46.5]} 18... hxg6 {[%clk 0:02:57.6]} 19. Bxf4 {[%clk
0:02:37.5]} 19... Bxb2 {[%clk 0:02:54.4]} 20. Rc2 {[%clk 0:02:27.8]} 20... Be5
{[%clk 0:02:52.4]} 21. Qf3 {[%clk 0:02:15]} 21... g5 {[%clk 0:02:45.3]} 22. Bd2
{[%clk 0:02:04]} 22... g4 {[%clk 0:02:32.4]} 23. Qd3 {[%clk 0:01:57]} 23... Qf6
{[%clk 0:02:15.9]} 24. Bf4 {[%clk 0:01:35.4]} 24... Bxf4 {[%clk 0:02:13.3]} 25.
Rxf4 {[%clk 0:01:35.3]} 25... Ne5 {[%clk 0:02:11.5]} 26. Qf1 {[%clk 0:01:30.8]}
26... g5 {[%clk 0:02:02.4]} 27. Rd4 {[%clk 0:01:14.6]} 27... b5 {[%clk
0:01:55.8]} 28. Rdd2 {[%clk 0:00:45.6]} 28... Nxc4 {[%clk 0:01:43.6]} 29. Rf2
{[%clk 0:00:28]} 29... Ne3 {[%clk 0:01:37.3]} 30. Rxc8 {[%clk 0:00:22.1]} 30...
Nxf1 {[%clk 0:01:36.3]} 31. Rxf8+ {[%clk 0:00:21.1]} 31... Kxf8 {[%clk
0:01:30.7]} 32. Rxf1 {[%clk 0:00:19.3]} 32... f4 {[%clk 0:01:22.2]} 33. g3
{[%clk 0:00:17.9]} 33... f3 {[%clk 0:01:18.6]} 34. Kh1 {[%clk 0:00:15.6]} 34...
Qb2 {[%clk 0:01:14.6]} 35. Ra1 {[%clk 0:00:13.8]} 35... Qg2# {[%clk 0:01:13.1]}
0-1

[Event "Live Chess"]
[Site "Chess.com"]
[Date "2023.05.21"]
[Round "-"]
[White "omisoc"]
[Black "jimwad"]
[Result "1-0"]
[WhiteElo "2175"]
[BlackElo "1220"]
[TimeControl "300"]
[EndTime "5:53:33 PDT"]
[Termination "omisoc won on time"]

1. Nf3 {[%clk 0:04:58.3]} 1... d5 {[%clk 0:04:56.7]} 2. e3 {[%clk 0:04:54]} 2...
Nc6 {[%clk 0:04:53.6]} 3. d4 {[%clk 0:04:49.4]} 3... Bg4 {[%clk 0:04:51.4]} 4.
c4 {[%clk 0:04:46.6]} 4... e6 {[%clk 0:04:49.6]} 5. Qb3 {[%clk 0:04:40.8]} 5...
Qc8 {[%clk 0:04:44.4]} 6. Nc3 {[%clk 0:04:34.8]} 6... dxc4 {[%clk 0:04:41.2]} 7.
Bxc4 {[%clk 0:04:32.4]} 7... Nf6 {[%clk 0:04:39.2]} 8. O-O {[%clk 0:04:11.6]}
8... Bxf3 {[%clk 0:04:37.8]} 9. gxf3 {[%clk 0:04:09.3]} 9... Be7 {[%clk
0:04:35.4]} 10. Kh1 {[%clk 0:03:59.5]} 10... Na5 {[%clk 0:04:32.8]} 11. Qa4+
{[%clk 0:03:52.5]} 11... Nc6 {[%clk 0:04:30.1]} 12. Rg1 {[%clk 0:03:12.8]} 12...
O-O {[%clk 0:04:19.5]} 13. f4 {[%clk 0:03:11.5]} 13... a6 {[%clk 0:03:39.5]} 14.
Be2 {[%clk 0:03:09.4]} 14... b5 {[%clk 0:03:36.6]} 15. Qd1 {[%clk 0:03:05]}
15... Nb4 {[%clk 0:03:32.6]} 16. Bf3 {[%clk 0:03:02.6]} 16... Nbd5 {[%clk
0:03:30.6]} 17. Bd2 {[%clk 0:02:57.5]} 17... c6 {[%clk 0:03:26]} 18. Rc1 {[%clk
0:02:20.8]} 18... Nxc3 {[%clk 0:03:15.7]} 19. bxc3 {[%clk 0:02:14.9]} 19... Ra7
{[%clk 0:03:05.7]} 20. e4 {[%clk 0:02:12.4]} 20... Rd7 {[%clk 0:02:46]} 21. Be3
{[%clk 0:02:06]} 21... Qd8 {[%clk 0:02:13.9]} 22. a4 {[%clk 0:02:02.2]} 22... b4
{[%clk 0:01:56.6]} 23. cxb4 {[%clk 0:01:58.4]} 23... Bxb4 {[%clk 0:01:55.1]} 24.
Rxc6 {[%clk 0:01:56.6]} 24... a5 {[%clk 0:01:46.4]} 25. Qc2 {[%clk 0:01:50.8]}
25... Rb7 {[%clk 0:01:10.1]} 26. f5 {[%clk 0:01:39.5]} 26... exf5 {[%clk
0:01:05.3]} 27. e5 {[%clk 0:01:38.2]} 27... Nd5 {[%clk 0:00:57.4]} 28. Qxf5
{[%clk 0:01:36.1]} 28... Nxe3 {[%clk 0:00:52.8]} 29. fxe3 {[%clk 0:01:33.6]}
29... Rc7 {[%clk 0:00:46.2]} 30. Rxc7 {[%clk 0:01:09.4]} 30... Qxc7 {[%clk
0:00:43.7]} 31. Qf6 {[%clk 0:00:51.5]} 31... g6 {[%clk 0:00:35.7]} 32. Bd5
{[%clk 0:00:45.8]} 32... Qd7 {[%clk 0:00:24.6]} 33. Be4 {[%clk 0:00:34.7]} 33...
Qe7 {[%clk 0:00:19.2]} 34. Qxe7 {[%clk 0:00:30.2]} 34... Bxe7 {[%clk 0:00:17.8]}
35. Rc1 {[%clk 0:00:29.8]} 35... Rb8 {[%clk 0:00:15.8]} 36. Rc7 {[%clk
0:00:28.3]} 36... Bf8 {[%clk 0:00:14.6]} 37. Bd5 {[%clk 0:00:27.4]} 37... Rb1+
{[%clk 0:00:10.2]} 38. Kg2 {[%clk 0:00:25.9]} 38... Rb2+ {[%clk 0:00:09.2]} 39.
Kf3 {[%clk 0:00:23.1]} 39... Rb4 {[%clk 0:00:07.2]} 40. Rxf7 {[%clk 0:00:20.8]}
40... Rxa4 {[%clk 0:00:03.3]} 41. Ra7+ {[%clk 0:00:19.1]} 41... Kh8 {[%clk
0:00:00.9]} 42. e6 {[%clk 0:00:18.3]} 1-0

[Event "Live Chess"]
[Site "Chess.com"]
[Date "2023.05.21"]
[Round "-"]
[White "MarkLim1"]
[Black "Brooms1989"]
[Result "1-0"]
[WhiteElo "1705"]
[BlackElo "1148"]
[TimeControl "300"]
[EndTime "5:53:38 PDT"]
[Termination "MarkLim1 won by resignation"]

1. e4 {[%clk 0:04:57.5]} 1... e5 {[%clk 0:04:57.5]} 2. Bc4 {[%clk 0:04:56]} 2...
Nf6 {[%clk 0:04:56.5]} 3. d3 {[%clk 0:04:55.2]} 3... Bc5 {[%clk 0:04:55.2]} 4.
Nf3 {[%clk 0:04:54]} 4... d6 {[%clk 0:04:52.3]} 5. O-O {[%clk 0:04:53.1]} 5...
h6 {[%clk 0:04:49.8]} 6. c3 {[%clk 0:04:52.1]} 6... O-O {[%clk 0:04:48.9]} 7.
Nbd2 {[%clk 0:04:50.8]} 7... Bb6 {[%clk 0:04:47.8]} 8. Re1 {[%clk 0:04:46.3]}
8... Bg4 {[%clk 0:04:46.1]} 9. Nf1 {[%clk 0:04:45.1]} 9... Nbd7 {[%clk
0:04:37.6]} 10. h3 {[%clk 0:04:42.8]} 10... Bh5 {[%clk 0:04:35.9]} 11. Ng3
{[%clk 0:04:41.3]} 11... Bxf3 {[%clk 0:04:33.2]} 12. Qxf3 {[%clk 0:04:40.1]}
12... Nc5 {[%clk 0:04:31.6]} 13. a4 {[%clk 0:04:36.3]} 13... a5 {[%clk
0:04:28.9]} 14. Nf5 {[%clk 0:04:30.3]} 14... Ne6 {[%clk 0:04:11.6]} 15. Qg3
{[%clk 0:04:26]} 15... Nh7 {[%clk 0:03:57.9]} 16. Bxe6 {[%clk 0:04:23.8]} 1-0

[Event "Live Chess"]
[Site "Chess.com"]
[Date "2023.05.21"]
[Round "-"]
[White "garyjc"]
[Black "TheSmoulderingMaster"]
[Result "0-1"]
[WhiteElo "1040"]
[BlackElo "1641"]
[TimeControl "300"]
[EndTime "5:53:42 PDT"]
[Termination "TheSmoulderingMaster won by resignation"]

1. e4 {[%clk 0:04:57.4]} 1... c5 {[%clk 0:04:58.9]} 2. Nc3 {[%clk 0:04:55.8]}
2... Nc6 {[%clk 0:04:57.3]} 3. f4 {[%clk 0:04:55]} 3... e6 {[%clk 0:04:56.6]} 4.
Nf3 {[%clk 0:04:54.2]} 4... Nge7 {[%clk 0:04:55.9]} 5. Bc4 {[%clk 0:04:48.9]}
5... g6 {[%clk 0:04:54.5]} 6. O-O {[%clk 0:04:45.6]} 6... Bg7 {[%clk 0:04:53.6]}
7. d3 {[%clk 0:04:44.2]} 7... O-O {[%clk 0:04:52.6]} 8. f5 {[%clk 0:04:34]} 8...
d5 {[%clk 0:04:49.6]} 9. exd5 {[%clk 0:04:24]} 9... exd5 {[%clk 0:04:48.8]} 10.
Bb3 {[%clk 0:04:18.9]} 10... Bxf5 {[%clk 0:04:47.1]} 11. Nh4 {[%clk 0:04:03.8]}
11... Nd4 {[%clk 0:04:41.3]} 12. Nxf5 {[%clk 0:03:53.8]} 12... Nexf5 {[%clk
0:04:39.1]} 13. Bxd5 {[%clk 0:03:39.1]} 13... Ne3 {[%clk 0:04:36.5]} 14. Bxe3
{[%clk 0:03:09]} 14... Re8 {[%clk 0:04:30.6]} 15. Bxf7+ {[%clk 0:03:02.2]} 15...
Kh8 {[%clk 0:04:29]} 16. Bxe8 {[%clk 0:03:00.9]} 16... Qxe8 {[%clk 0:04:28.3]}
17. Re1 {[%clk 0:02:57.9]} 17... Qd7 {[%clk 0:04:23.3]} 18. Qd2 {[%clk
0:02:44.1]} 18... b5 {[%clk 0:04:13.3]} 19. Bh6 {[%clk 0:02:31.4]} 19... Bxh6
{[%clk 0:04:07.3]} 20. Qxh6 {[%clk 0:02:26.9]} 20... Nxc2 {[%clk 0:04:06.3]} 21.
Re4 {[%clk 0:01:55.9]} 21... Nxa1 {[%clk 0:04:02.5]} 22. Qg5 {[%clk 0:01:29.9]}
22... Qg7 {[%clk 0:03:53.9]} 23. Re7 {[%clk 0:01:23.9]} 23... Qd4+ {[%clk
0:03:50.3]} 24. Kh1 {[%clk 0:01:21.2]} 24... Rf8 {[%clk 0:03:42.4]} 25. Qe5+
{[%clk 0:01:12.9]} 25... Qxe5 {[%clk 0:03:40.1]} 0-1

[Event "Live Chess"]
[Site "Chess.com"]
[Date "2023.05.21"]
[Round "-"]
[White "bedsdrout"]
[Black "LodeshChess"]
[Result "1-0"]
[WhiteElo "898"]
[BlackElo "1175"]
[TimeControl "300"]
[EndTime "5:53:55 PDT"]
[Termination "bedsdrout won by resignation"]

1. Nc3 {[%clk 0:04:58.1]} 1... d5 {[%clk 0:04:55.2]} 2. Nf3 {[%clk 0:04:55.8]}
2... Nc6 {[%clk 0:04:52.7]} 3. d4 {[%clk 0:04:54]} 3... Bg4 {[%clk 0:04:47.9]}
4. a3 {[%clk 0:04:51.6]} 4... e6 {[%clk 0:04:46]} 5. Bf4 {[%clk 0:04:48.4]} 5...
Nf6 {[%clk 0:04:43.5]} 6. h3 {[%clk 0:04:46.2]} 6... Bxf3 {[%clk 0:04:42]} 7.
gxf3 {[%clk 0:04:44]} 7... Be7 {[%clk 0:04:41.2]} 8. e3 {[%clk 0:04:40.2]} 8...
a6 {[%clk 0:04:36.3]} 9. Rg1 {[%clk 0:04:38.1]} 9... O-O {[%clk 0:04:32.4]} 10.
Qd3 {[%clk 0:04:35.9]} 10... b5 {[%clk 0:04:24.5]} 11. Bh6 {[%clk 0:04:33.7]}
11... g6 {[%clk 0:04:18.7]} 12. Bxf8 {[%clk 0:04:30.8]} 12... Bxf8 {[%clk
0:04:18.2]} 13. Be2 {[%clk 0:04:28.4]} 13... Na5 {[%clk 0:04:07]} 14. Qd2 {[%clk
0:04:19.4]} 14... Nc4 {[%clk 0:04:03.5]} 15. Bxc4 {[%clk 0:04:17.1]} 15... bxc4
{[%clk 0:04:03.1]} 16. O-O-O {[%clk 0:04:13.8]} 16... c5 {[%clk 0:04:02.3]} 17.
Na4 {[%clk 0:04:09.2]} 17... cxd4 {[%clk 0:03:58.5]} 18. Qxd4 {[%clk 0:04:06.4]}
18... Bg7 {[%clk 0:03:57.8]} 19. Qd2 {[%clk 0:04:03.6]} 19... Rb8 {[%clk
0:03:56.4]} 20. Kb1 {[%clk 0:04:01.5]} 20... Nd7 {[%clk 0:03:45.3]} 21. f4
{[%clk 0:03:59.3]} 21... Nb6 {[%clk 0:03:40.6]} 22. Nxb6 {[%clk 0:03:51.5]}
22... Qxb6 {[%clk 0:03:38.8]} 23. c3 {[%clk 0:03:46.9]} 23... Qa5 {[%clk
0:03:29.6]} 24. Ka1 {[%clk 0:03:44.5]} 24... Rb3 {[%clk 0:03:11.6]} 25. Rc1
{[%clk 0:03:37.4]} 25... Qb5 {[%clk 0:02:49]} 26. f5 {[%clk 0:03:24.6]} 26...
Rxb2 {[%clk 0:02:42.7]} 27. Qxb2 {[%clk 0:03:19.9]} 27... Qxb2+ {[%clk
0:02:31.9]} 28. Kxb2 {[%clk 0:03:18]} 28... a5 {[%clk 0:02:30.1]} 29. Kc2 {[%clk
0:03:15.4]} 29... a4 {[%clk 0:02:30]} 30. fxe6 {[%clk 0:03:12.9]} 30... fxe6
{[%clk 0:02:28.2]} 31. Rb1 {[%clk 0:03:10.5]} 31... Kf8 {[%clk 0:02:25]} 32.
Rb8+ {[%clk 0:03:08.2]} 32... Ke7 {[%clk 0:02:23.9]} 33. Rb7+ {[%clk 0:03:06]}
33... Kf6 {[%clk 0:02:23.4]} 34. Rg3 {[%clk 0:03:04.2]} 34... Bh6 {[%clk
0:02:17.5]} 35. Rxh7 {[%clk 0:02:58.8]} 35... Bg5 {[%clk 0:02:15.2]} 36. f4
{[%clk 0:02:55.2]} 1-0

[Event "Live Chess"]
[Site "Chess.com"]
[Date "2023.05.21"]
[Round "-"]
[White "JanMur7"]
[Black "matt1979"]
[Result "1-0"]
[WhiteElo "1962"]
[BlackElo "1540"]
[TimeControl "300"]
[EndTime "5:54:03 PDT"]
[Termination "JanMur7 won by resignation"]

1. e4 {[%clk 0:04:58.6]} 1... d6 {[%clk 0:04:57.2]} 2. d4 {[%clk 0:04:57.3]}
2... Nf6 {[%clk 0:04:55.8]} 3. Nc3 {[%clk 0:04:55.5]} 3... e5 {[%clk 0:04:54]}
4. dxe5 {[%clk 0:04:54.3]} 4... dxe5 {[%clk 0:04:52.9]} 5. Qxd8+ {[%clk
0:04:53.3]} 5... Kxd8 {[%clk 0:04:52.8]} 6. Bc4 {[%clk 0:04:52.2]} 6... Ke8
{[%clk 0:04:46.9]} 7. Be3 {[%clk 0:04:50.5]} 7... Bb4 {[%clk 0:04:35.6]} 8. f3
{[%clk 0:04:48.1]} 8... c6 {[%clk 0:04:33]} 9. Ne2 {[%clk 0:04:46.2]} 9... Nbd7
{[%clk 0:04:28.4]} 10. O-O {[%clk 0:04:44]} 10... Nb6 {[%clk 0:04:26.9]} 11. Bb3
{[%clk 0:04:41.8]} 11... Bd7 {[%clk 0:04:17.1]} 12. a3 {[%clk 0:04:28.8]} 12...
Bd6 {[%clk 0:04:13.3]} 13. Rad1 {[%clk 0:04:22.9]} 13... Bc7 {[%clk 0:04:10.5]}
14. Na4 {[%clk 0:04:20.4]} 14... Nxa4 {[%clk 0:04:06.9]} 15. Bxa4 {[%clk
0:04:20.3]} 15... Ke7 {[%clk 0:04:03.1]} 16. Bc5+ {[%clk 0:04:17.3]} 16... Kd8
{[%clk 0:03:56.2]} 17. Bb3 {[%clk 0:04:14]} 17... Ke8 {[%clk 0:03:51.9]} 18. Nc1
{[%clk 0:03:52.8]} 18... b6 {[%clk 0:03:42.5]} 19. Be3 {[%clk 0:03:34.2]} 19...
Rd8 {[%clk 0:03:36.3]} 20. Ne2 {[%clk 0:03:26.1]} 20... Ke7 {[%clk 0:03:34]} 21.
Nc3 {[%clk 0:03:07.2]} 21... Rhe8 {[%clk 0:03:29.6]} 22. Rd2 {[%clk 0:02:44.3]}
22... Kf8 {[%clk 0:03:25.7]} 23. Rfd1 {[%clk 0:02:41.9]} 23... Bc8 {[%clk
0:03:18.6]} 24. Rxd8 {[%clk 0:02:30.8]} 24... Rxd8 {[%clk 0:03:17.2]} 25. Rxd8+
{[%clk 0:02:29.9]} 25... Bxd8 {[%clk 0:03:16]} 26. Ba4 {[%clk 0:02:29.1]} 26...
Bd7 {[%clk 0:03:09.2]} 27. Na2 {[%clk 0:02:25.5]} 27... c5 {[%clk 0:03:03]} 28.
Bxd7 {[%clk 0:02:12.7]} 28... Nxd7 {[%clk 0:03:01.3]} 29. Nc3 {[%clk 0:02:12.5]}
29... Bc7 {[%clk 0:02:49.9]} 30. Nb5 {[%clk 0:02:03.1]} 30... Bb8 {[%clk
0:02:47]} 31. c4 {[%clk 0:02:00.6]} 31... Nf6 {[%clk 0:02:38.5]} 32. Bg5 {[%clk
0:01:56.9]} 32... Ne8 {[%clk 0:02:34.6]} 33. Nc3 {[%clk 0:01:53.2]} 33... f6
{[%clk 0:02:32.2]} 34. Bh4 {[%clk 0:01:51.7]} 34... Nd6 {[%clk 0:02:20.6]} 35.
b3 {[%clk 0:01:48.8]} 35... Nb7 {[%clk 0:02:16.1]} 36. Bf2 {[%clk 0:01:46.3]}
36... Na5 {[%clk 0:02:13.5]} 37. b4 {[%clk 0:01:43.5]} 37... Nxc4 {[%clk
0:02:09.3]} 38. bxc5 {[%clk 0:01:41.6]} 38... Nxa3 {[%clk 0:01:59.3]} 39. cxb6
{[%clk 0:01:40.3]} 39... axb6 {[%clk 0:01:56.4]} 40. Bxb6 {[%clk 0:01:38.8]}
40... Bd6 {[%clk 0:01:53.2]} 41. Nd5 {[%clk 0:01:37.3]} 41... Nc4 {[%clk
0:01:44.7]} 42. Kf1 {[%clk 0:01:28.9]} 42... Nxb6 {[%clk 0:01:39]} 43. Nxb6
{[%clk 0:01:28.8]} 43... Ke7 {[%clk 0:01:34.9]} 44. Ke2 {[%clk 0:01:25.9]} 44...
Bc5 {[%clk 0:01:33]} 45. Nd5+ {[%clk 0:01:24.3]} 45... Kd6 {[%clk 0:01:30.8]}
46. Kd3 {[%clk 0:01:23.5]} 46... Ke6 {[%clk 0:01:21.6]} 47. Kc4 {[%clk
0:01:17.1]} 47... Bd4 {[%clk 0:01:17.3]} 48. g4 {[%clk 0:01:12.5]} 48... g5
{[%clk 0:01:10.7]} 49. Kb5 {[%clk 0:01:09]} 49... Kd6 {[%clk 0:01:02]} 50. Nxf6
{[%clk 0:01:06.6]} 50... h6 {[%clk 0:00:59.4]} 51. Ng8 {[%clk 0:01:04.8]} 51...
Bg1 {[%clk 0:00:57.5]} 52. h3 {[%clk 0:01:03.7]} 52... Bf2 {[%clk 0:00:54]} 53.
Nxh6 {[%clk 0:01:02]} 53... Bh4 {[%clk 0:00:51.5]} 54. Nf5+ {[%clk 0:01:00.7]}
54... Ke6 {[%clk 0:00:45.5]} 55. Nxh4 {[%clk 0:01:00.6]} 55... gxh4 {[%clk
0:00:44.2]} 56. Kc5 {[%clk 0:00:58]} 56... Kf6 {[%clk 0:00:43]} 57. Kd5 {[%clk
0:00:57.9]} 57... Kg5 {[%clk 0:00:40.4]} 58. Kxe5 {[%clk 0:00:57.8]} 1-0

[Event "Live Chess"]
[Site "Chess.com"]
[Date "2023.05.21"]
[Round "-"]
[White "viktorskliarov"]
[Black "jumush"]
[Result "1-0"]
[WhiteElo "2649"]
[BlackElo "1751"]
[TimeControl "300"]
[EndTime "5:54:03 PDT"]
[Termination "viktorskliarov won by resignation"]

1. e4 {[%clk 0:04:57.7]} 1... d5 {[%clk 0:04:55.9]} 2. exd5 {[%clk 0:04:56.4]}
2... Qxd5 {[%clk 0:04:54]} 3. Nc3 {[%clk 0:04:55.8]} 3... Qa5 {[%clk 0:04:52.3]}
4. d4 {[%clk 0:04:51]} 4... Nf6 {[%clk 0:04:50.5]} 5. Bc4 {[%clk 0:04:45.8]}
5... Bg4 {[%clk 0:04:45.2]} 6. f3 {[%clk 0:04:44.1]} 6... Bd7 {[%clk 0:04:43.4]}
7. Bd2 {[%clk 0:04:30.4]} 7... Qb6 {[%clk 0:04:37.7]} 8. Nge2 {[%clk 0:04:26.8]}
8... e6 {[%clk 0:04:28.4]} 9. O-O {[%clk 0:04:16.7]} 9... Nc6 {[%clk 0:04:26.3]}
10. Na4 {[%clk 0:04:14.6]} 10... Nxd4 {[%clk 0:04:15.9]} 11. Nxb6 {[%clk
0:04:11.9]} 11... Nxe2+ {[%clk 0:04:14.1]} 12. Qxe2 {[%clk 0:04:10.3]} 12...
axb6 {[%clk 0:04:11.6]} 13. Be3 {[%clk 0:04:06]} 13... Bc5 {[%clk 0:04:08.8]}
14. Bxc5 {[%clk 0:04:04.4]} 14... bxc5 {[%clk 0:04:07]} 15. Qe5 {[%clk
0:04:03.4]} 1-0

[Event "Live Chess"]
[Site "Chess.com"]
[Date "2023.05.21"]
[Round "-"]
[White "grillage"]
[Black "PantherCal"]
[Result "0-1"]
[WhiteElo "1793"]
[BlackElo "1791"]
[TimeControl "300"]
[EndTime "5:54:15 PDT"]
[Termination "PantherCal won by resignation"]

1. d4 {[%clk 0:04:57.3]} 1... d5 {[%clk 0:04:58.5]} 2. Nc3 {[%clk 0:04:53.7]}
2... c6 {[%clk 0:04:58.4]} 3. Bf4 {[%clk 0:04:45.6]} 3... Nf6 {[%clk 0:04:58.3]}
4. e3 {[%clk 0:04:43.8]} 4... Bf5 {[%clk 0:04:57.1]} 5. Bd3 {[%clk 0:04:40]}
5... e6 {[%clk 0:04:57]} 6. Nf3 {[%clk 0:04:36]} 6... Bd6 {[%clk 0:04:55.8]} 7.
O-O {[%clk 0:04:33.4]} 7... O-O {[%clk 0:04:54.3]} 8. Ne5 {[%clk 0:04:31.4]}
8... Qc7 {[%clk 0:04:52.5]} 9. a3 {[%clk 0:04:18.5]} 9... Nbd7 {[%clk
0:04:51.2]} 10. Nxd7 {[%clk 0:04:15.5]} 10... Qxd7 {[%clk 0:04:48.5]} 11. Bxd6
{[%clk 0:04:15]} 11... Qxd6 {[%clk 0:04:47]} 12. Re1 {[%clk 0:04:08.2]} 12...
Rfe8 {[%clk 0:04:41.6]} 13. e4 {[%clk 0:04:01.3]} 13... dxe4 {[%clk 0:04:41.5]}
14. Nxe4 {[%clk 0:03:56.1]} 14... Qxd4 {[%clk 0:04:25.7]} 15. Nxf6+ {[%clk
0:03:48.4]} 15... Qxf6 {[%clk 0:04:25.6]} 16. Bxf5 {[%clk 0:03:42.4]} 16... Qxf5
{[%clk 0:04:25.5]} 17. Qd7 {[%clk 0:03:40]} 17... Qb5 {[%clk 0:04:09.8]} 18.
Rad1 {[%clk 0:03:27.1]} 18... Qb6 {[%clk 0:03:57.9]} 19. Qd4 {[%clk 0:03:02.1]}
19... Rad8 {[%clk 0:03:53.2]} 20. Qh4 {[%clk 0:02:55.1]} 20... Rd5 {[%clk
0:03:37.3]} 21. b3 {[%clk 0:02:46.2]} 21... Red8 {[%clk 0:03:33.8]} 22. Rxd5
{[%clk 0:02:42]} 22... Rxd5 {[%clk 0:03:30.4]} 23. h3 {[%clk 0:02:34.7]} 23...
Rd2 {[%clk 0:03:23.5]} 24. Re3 {[%clk 0:02:10.5]} 24... Rd1+ {[%clk 0:02:57.5]}
25. Kh2 {[%clk 0:02:05.9]} 25... Qc7+ {[%clk 0:02:57.1]} 26. g3 {[%clk
0:01:56.6]} 26... Rd2 {[%clk 0:02:52.4]} 27. Kg2 {[%clk 0:01:37.6]} 27... g6
{[%clk 0:02:50.3]} 28. Qf6 {[%clk 0:01:27.2]} 28... Qd8 {[%clk 0:02:46.8]} 29.
Qe5 {[%clk 0:01:18.4]} 29... Qd4 {[%clk 0:02:34.6]} 30. Qb8+ {[%clk 0:01:11.2]}
30... Kg7 {[%clk 0:02:33.4]} 31. Qxb7 {[%clk 0:01:02.2]} 31... Qxe3 {[%clk
0:02:29.6]} 0-1

[Event "Live Chess"]
[Site "Chess.com"]
[Date "2023.05.21"]
[Round "-"]
[White "Biranidun"]
[Black "CeladonFish"]
[Result "1-0"]
[WhiteElo "2524"]
[BlackElo "1136"]
[TimeControl "300"]
[EndTime "5:54:38 PDT"]
[Termination "Biranidun won by resignation"]

1. e4 {[%clk 0:04:59.1]} 1... d6 {[%clk 0:04:57.2]} 2. d4 {[%clk 0:04:58.2]}
2... Nf6 {[%clk 0:04:55.4]} 3. Nc3 {[%clk 0:04:57.7]} 3... g6 {[%clk 0:04:52.5]}
4. f4 {[%clk 0:04:57]} 4... Bg7 {[%clk 0:04:50.9]} 5. Bd3 {[%clk 0:04:56.4]}
5... O-O {[%clk 0:04:49.2]} 6. Nf3 {[%clk 0:04:56]} 6... Bg4 {[%clk 0:04:43.4]}
7. h3 {[%clk 0:04:54.4]} 7... Bxf3 {[%clk 0:04:42.1]} 8. Qxf3 {[%clk 0:04:54.3]}
8... Nc6 {[%clk 0:04:37.6]} 9. Be3 {[%clk 0:04:53.2]} 9... Qd7 {[%clk
0:04:32.2]} 10. e5 {[%clk 0:04:51.8]} 10... dxe5 {[%clk 0:04:30.4]} 11. fxe5
{[%clk 0:04:51.7]} 11... Ne8 {[%clk 0:04:03.2]} 12. Ne2 {[%clk 0:04:48.8]} 12...
f6 {[%clk 0:03:57.5]} 13. e6 {[%clk 0:04:46.8]} 13... Qxe6 {[%clk 0:03:51.9]}
14. d5 {[%clk 0:04:45.7]} 14... Qe5 {[%clk 0:03:45.5]} 15. dxc6 {[%clk
0:04:43.8]} 15... Qxb2 {[%clk 0:03:43.9]} 16. Bd4 {[%clk 0:04:37]} 16... Qa3
{[%clk 0:03:38.3]} 17. Bc4+ {[%clk 0:04:33.9]} 17... Kh8 {[%clk 0:03:28.5]} 18.
Qxa3 {[%clk 0:04:33.8]} 1-0

[Event "Live Chess"]
[Site "Chess.com"]
[Date "2023.05.21"]
[Round "-"]
[White "AMCWAML"]
[Black "nigelst"]
[Result "1-0"]
[WhiteElo "2308"]
[BlackElo "1711"]
[TimeControl "300"]
[EndTime "5:54:40 PDT"]
[Termination "AMCWAML won by resignation"]

1. e4 {[%clk 0:04:58.6]} 1... c6 {[%clk 0:04:58.9]} 2. d4 {[%clk 0:04:57.6]}
2... d5 {[%clk 0:04:57.8]} 3. e5 {[%clk 0:04:57]} 3... c5 {[%clk 0:04:57]} 4. h4
{[%clk 0:04:56.9]} 4... cxd4 {[%clk 0:04:54.1]} 5. Nf3 {[%clk 0:04:55.7]} 5...
Nc6 {[%clk 0:04:52.4]} 6. Bb5 {[%clk 0:04:51.2]} 6... Bg4 {[%clk 0:04:45.5]} 7.
Qxd4 {[%clk 0:04:49.6]} 7... Qa5+ {[%clk 0:04:36.4]} 8. Nc3 {[%clk 0:04:48.1]}
8... Bxf3 {[%clk 0:04:27]} 9. gxf3 {[%clk 0:04:38.6]} 9... Qxb5 {[%clk 0:04:21]}
10. Nxb5 {[%clk 0:04:37]} 10... Nxd4 {[%clk 0:04:19.5]} 11. Nxd4 {[%clk
0:04:36.9]} 11... e6 {[%clk 0:04:16.1]} 12. Nb5 {[%clk 0:04:32.8]} 12... Rc8
{[%clk 0:04:09.2]} 13. Nxa7 {[%clk 0:04:23.6]} 13... Rxc2 {[%clk 0:04:07.5]} 14.
a3 {[%clk 0:04:13.5]} 14... Bc5 {[%clk 0:04:06]} 15. O-O {[%clk 0:04:04.2]}
15... Bxa7 {[%clk 0:04:03.4]} 16. Bf4 {[%clk 0:03:37.7]} 16... Ne7 {[%clk
0:04:00.3]} 17. Rac1 {[%clk 0:03:34.1]} 17... Rxc1 {[%clk 0:03:55.2]} 18. Rxc1
{[%clk 0:03:34]} 18... O-O {[%clk 0:03:51.9]} 19. Rc7 {[%clk 0:03:31.5]} 19...
Ng6 {[%clk 0:03:46]} 20. Bg3 {[%clk 0:03:30.9]} 20... Bd4 {[%clk 0:03:37.8]} 21.
Rxb7 {[%clk 0:03:28]} 21... Nxe5 {[%clk 0:03:33.1]} 22. Kg2 {[%clk 0:03:23.9]}
22... Nd3 {[%clk 0:03:26.1]} 23. b4 {[%clk 0:03:12.6]} 23... Ne1+ {[%clk
0:03:23.6]} 24. Kf1 {[%clk 0:03:08.6]} 24... Nxf3 {[%clk 0:03:22]} 25. a4 {[%clk
0:03:07.3]} 25... Nd2+ {[%clk 0:03:16.5]} 26. Ke2 {[%clk 0:03:05.1]} 26... Nc4
{[%clk 0:03:13.2]} 27. a5 {[%clk 0:03:00.2]} 27... Rc8 {[%clk 0:03:08.3]} 28. a6
{[%clk 0:02:58.3]} 28... Ra8 {[%clk 0:03:01.5]} 29. b5 {[%clk 0:02:50.3]} 29...
Na3 {[%clk 0:03:00.1]} 30. b6 {[%clk 0:02:46.6]} 30... h6 {[%clk 0:02:45.3]} 31.
a7 {[%clk 0:02:45.8]} 31... Bxb6 {[%clk 0:02:38.8]} 32. Rb8+ {[%clk 0:02:44.8]}
32... Kh7 {[%clk 0:02:33.1]} 33. Rxa8 {[%clk 0:02:43.6]} 33... Nb5 {[%clk
0:02:27.4]} 34. Rh8+ {[%clk 0:02:32.2]} 34... Kxh8 {[%clk 0:02:24.7]} 35. a8=Q+
{[%clk 0:02:32.1]} 35... Kh7 {[%clk 0:02:23.7]} 36. Qb7 {[%clk 0:02:30.3]} 36...
Nd4+ {[%clk 0:02:17.2]} 37. Kd3 {[%clk 0:02:29.4]} 37... Bc5 {[%clk 0:02:15.9]}
38. Qxf7 {[%clk 0:02:27.6]} 38... Nf5 {[%clk 0:02:11.6]} 39. Qxe6 {[%clk
0:02:24.1]} 39... Nxg3 {[%clk 0:02:09.2]} 40. fxg3 {[%clk 0:02:22.5]} 1-0